lending/lending_fUSD_20240130
["ID","MTS","AMOUNT","RATE_DAILY","PERIOD"]
[313004994,1706591221571,300.0,0.000227,8]
[313004995,1706591223646,600.0,0.000228,8]
[313004996,1706591225727,900.0,0.000229,8]
[313004997,1706591247703,150.0,0.0002194,2]
[313004998,1706591260534,459.93,0.0002194,2]
[313004999,1706591309618,200.0,0.00021948,2]
[313005000,1706591352291,-227.61137441,0.00022536,4]
[313005001,1706591352311,-1715.84351913,0.00022574,2]
[313005002,1706591352330,-384.67,0.00022575,2]
[313005003,1706591352350,-490.91608942,0.00022593,2]
[313005004,1706591356126,-22174.80568441,0.00022593,2]
[313005005,1706591356145,-301.89135144,0.00022593,2]
[313005006,1706591356165,-2952.88969151,0.00022594,2]
[313005007,1706591356184,-2555.95627264,0.00022594,2]
[313005008,1706591361132,-210.0,0.00022594,2]
[313005009,1706591367210,-7808.77135938,0.00022594,2]
[313005010,1706591367231,-345.75604865,0.00022594,2]
[313005011,1706591367251,-946.67301262,0.00022594,2]
[313005012,1706591367271,-490.76770208,0.00022594,2]
[313005013,1706591367290,-287.11624451,0.00022594,2]
[313005014,1706591367310,-172.91236117,0.00022594,2]
[313005015,1706591367331,-420.51163347,0.00022595,2]
[313005016,1706591367352,-1374.42899066,0.00022595,2]
[313005017,1706591367372,-593.81711624,0.000226,2]
[313005018,1706591367394,-384.67,0.00022637,2]
[313005019,1706591367416,-384.67,0.00022699,2]
[313005020,1706591367438,-384.67,0.00022761,2]
[313005021,1706591367457,-4444.45,0.00022761,2]
[313005022,1706591367479,-250.0,0.0002279,2]
[313005023,1706591367501,-312.85,0.0002279,2]
[313005024,1706591367520,-1620.34,0.0002279,2]
[313005025,1706591367539,-499.99,0.0002279,2]
[313005026,1706591367559,-168.50002055,0.000228,2]
[313005027,1706591367578,-384.67,0.00022823,2]
[313005028,1706591367597,-1366.63,0.00022873,2]
[313005029,1706591367615,-7720.73851067,0.00022873,2]
[313005030,1706591368099,-11194.25148933,0.00022873,2]
[313005031,1706591368118,-688.59,0.00022873,2]
[313005032,1706591368142,-384.67,0.00022885,2]
[313005033,1706591368160,-1176.2464,0.00022887,2]
[313005034,1706591368181,-250.0,0.00022889,2]
[313005035,1706591368199,-9097.54011067,0.0002289,2]
[313005036,1706591373115,-2063.50094198,0.00022593,2]
[313005037,1706591398358,250.0,0.00022122,2]
[313005038,1706591400346,2500.0,0.00022122,3]
[313005042,1706591415654,508.94,0.00020239,2]
[313005043,1706591424248,471.63,0.00022157,2]
[313005052,1706591431578,-1143.89567942,0.00022502,2]
[313005053,1706591431588,-508.94,0.00022503,2]
[313005054,1706591431597,-3025.588173,0.00022659,2]
[313005055,1706591431608,-548.0,0.00022873,2]
[313005056,1706591431617,-428.7451787,0.00022887,2]
[313005057,1706591431626,-5319.82124941,0.0002289,2]
[313005058,1706591431639,-307.14540002,0.0002289,2]
[313005059,1706591431650,-853.71847551,0.0002289,2]
[313005060,1706591431662,-852.59213198,0.0002289,2]
[313005061,1706591431678,-300.96616691,0.0002289,2]
[313005062,1706591431690,-971.00210119,0.0002289,2]
[313005063,1706591431704,-893.71670212,0.0002289,2]
[313005064,1706591431720,-578.53223834,0.0002289,2]
[313005065,1706591431732,-756.76167209,0.0002289,2]
[313005066,1706591431743,-10003.56195039,0.00022899,2]
[313005067,1706591431752,-443.558,0.000229,2]
[313005068,1706591431761,-7529.9048,0.000229,2]
[313005069,1706591431771,-5785.02213016,0.000229,2]
[313005070,1706591431781,-152.49679441,0.000229,2]
[313005071,1706591431790,-1091.10497046,0.000229,2]
[313005072,1706591431800,-384.67,0.00022947,2]
[313005073,1706591431810,-356.71312415,0.00022987,2]
[313005074,1706591431819,-216.43421426,0.00022987,2]
[313005075,1706591431829,-290.66814584,0.00022987,2]
[313005076,1706591431838,-3060.05873758,0.00022987,2]
[313005077,1706591431847,-251.78436836,0.00022987,2]
[313005078,1706591431857,-297.23685579,0.00022987,2]
[313005080,1706591431867,-16791.76120032,0.00022987,2]
[313005082,1706591431879,-345.85363924,0.00022987,2]
[313005085,1706591431893,-1578.19455496,0.00022987,2]
[313005087,1706591431908,-347.08732564,0.00022987,2]
[313005088,1706591431920,-999.87426,0.00022987,2]
[313005089,1706591431931,-301.52504693,0.00022987,2]
[313005090,1706591431943,-2112.59173516,0.00022987,2]
[313005091,1706591431955,-572.78766273,0.00022987,2]
[313005092,1706591431968,-1766.89073922,0.00022987,2]
[313005093,1706591431979,-1506.46241609,0.00022987,2]
[313005094,1706591431990,-745.35826249,0.00022987,2]
[313005095,1706591432013,-251759.92639263,0.00022987,2]
[313005096,1706591432023,-167.64884233,0.00022987,2]
[313005097,1706591432032,-280.81103283,0.00022987,2]
[313005098,1706591432041,-246.35187576,0.00022987,2]
[313005099,1706591432050,-507.00944334,0.00022987,2]
[313005100,1706591432060,-261.68540079,0.00022987,2]
[313005101,1706591432069,-491.56161425,0.00022988,2]
[313005102,1706591432079,-306.29925579,0.00022993,2]
[313005103,1706591432088,-210.22822012,0.00022996,2]
[313005104,1706591432097,-203.80773526,0.00022998,2]
[313005105,1706591432106,-155.66270837,0.00022998,2]
[313005106,1706591432116,-3358.03557856,0.00022998,2]
[313005107,1706591432126,-874.34312932,0.00022998,2]
[313005108,1706591432135,-11160.31911639,0.00022999,2]
[313005109,1706591432145,-4743.73405085,0.00022999,2]
[313005110,1706591432155,-609031.44681335,0.00023,2]
[313005111,1706591432168,-149435.64568507,0.00023,2]
[313005112,1706591432178,-38691.57739201,0.00023,2]
[313005113,1706591432191,-455.94522447,0.00023,2]
[313005114,1706591432208,-895.24018192,0.00023,2]
[313005115,1706591432220,-935.31158802,0.00023,2]
[313005125,1706591437635,-698.98004566,0.00023,2]
[313005126,1706591437655,-370.9210067,0.00023,2]
[313005127,1706591437667,-864.9255664,0.00023,2]
[313005128,1706591437679,-616.01249581,0.00023,2]
[313005129,1706591437747,-8715.34398227,0.00023,2]
[313005130,1706591437781,-43650.5509311,0.00023,2]
[313005131,1706591437792,-31463.62667126,0.00023,2]
[313005132,1706591437805,-39524.84862993,0.00023,2]
[313005133,1706591437817,-1840.01178555,0.00023,2]
[313005134,1706591437829,-1901.93818395,0.00023,2]
[313005135,1706591437850,-21710.50000001,0.00023,2]
[313005136,1706591437862,-1026.66280624,0.00023,2]
[313005137,1706591437875,-417.121379,0.00023,2]
[313005138,1706591437887,-10331.81384446,0.00023,2]
[313005140,1706591437916,-281.55,0.00023,2]
[313005142,1706591437927,-105296.82493432,0.00023,2]
[313005145,1706591437940,-869.17253039,0.00023,2]
[313005148,1706591437966,-2230.25241474,0.00023,2]
[313005149,1706591437979,-1156.1043936,0.00023,2]
[313005150,1706591437991,-2027.33882137,0.00023,2]
[313005151,1706591438004,-4352.92914523,0.00023,2]
[313005153,1706591438526,-11108.48015351,0.00023,2]
[313005170,1706591440143,-912.96272937,0.00023,2]
[313005203,1706591440800,-116040.43420246,0.00023,2]
[313005204,1706591440849,-2147.13933649,0.00023,2]
[313005205,1706591440898,-934.02583281,0.00023,2]
[313005206,1706591440911,-764.82211752,0.00023,2]
[313005207,1706591440924,-62516.33454613,0.00023,2]
[313005208,1706591440952,-1434.80470611,0.00023,2]
[313005212,1706591442507,-601.88824719,0.00023,2]
[313005213,1706591442519,-2278.81377185,0.00023,2]
[313005214,1706591442568,-4824.07128542,0.00023,2]
[313005215,1706591442619,-338.20311739,0.00023,2]
[313005216,1706591442630,-1007.44054457,0.00023,2]
[313005217,1706591442642,-633.13267263,0.00023,2]
[313005218,1706591442655,-1293.79166905,0.00023,2]
[313005219,1706591442676,-4950.14600257,0.00023,2]
[313005220,1706591442687,-2172.25771036,0.00023,2]
[313005221,1706591442701,-926.38502705,0.00023,2]
[313005222,1706591442713,-6649.251936,0.00023,2]
[313005223,1706591442734,-915.21587112,0.00023,2]
[313005224,1706591442787,-289.315,0.00023,2]
[313005225,1706591442799,-160.54083784,0.00023,2]
[313005226,1706591442809,-384.67,0.00023008,2]
[313005227,1706591442818,-121.19916216,0.0002307,2]
[313005228,1706591442844,-263.47083784,0.0002307,2]
[313005229,1706591442853,-539.91593966,0.0002313,2]
[313005231,1706591442907,-122.43948157,0.0002313,2]
[313005233,1706591442917,-384.67,0.00023132,2]
[313005235,1706591442926,-540.07,0.00023134,2]
[313005237,1706591442936,-166.06,0.00023174,2]
[313005238,1706591442947,-384.67,0.00023194,2]
[313005239,1706591442956,-384.67,0.00023256,2]
[313005240,1706591442965,-471.63,0.00023265,2]
[313005241,1706591442976,-281.85,0.0002331,2]
[313005242,1706591442985,-384.67,0.00023318,2]
[313005243,1706591442994,-698.8,0.00023368,2]
[313005244,1706591443004,-1162.63,0.00023368,2]
[313005245,1706591443013,-384.67,0.0002338,2]
[313005247,1706591443022,-384.67,0.00023442,2]
[313005249,1706591443031,-384.67,0.00023504,2]
[313005251,1706591443041,-384.67,0.00023566,2]
[313005253,1706591443050,-335.0611907,0.00023628,2]
[313005259,1706591445696,-49.6088093,0.00023628,2]
[313005260,1706591445706,-2277.34,0.00023645,2]
[313005261,1706591445715,-384.67,0.0002369,2]
[313005262,1706591445725,-384.67,0.00023751,2]
[313005263,1706591445734,-155.34771185,0.000241,2]
[313005264,1706591445743,-155.78,0.0002429,2]
[313005265,1706591445753,-471.63,0.00024373,2]
[313005266,1706591445763,-1006.3,0.00024384,2]
[313005267,1706591445773,-250.0,0.00024658,2]
[313005268,1706591445783,-459.93,0.00024682,2]
[313005269,1706591445793,-508.94,0.00024767,2]
[313005270,1706591445802,-935.98268242,0.00025,2]
[313005271,1706591445811,-778.10653987,0.00025,2]
[313005272,1706591445828,-433.77264747,0.00025,2]
[313005273,1706591445840,-376.04112648,0.00025,2]
[313005274,1706591445850,-152.49679437,0.00025064,2]
[313005275,1706591445859,-2133.95566081,0.0002509,2]
[313005276,1706591446918,-980.24641586,0.0002509,2]
[313005277,1706591446926,-42.42621217,0.0002518,2]
[313005278,1706591446999,-798.83378783,0.0002518,2]
[313005279,1706591447010,-1.16621217,0.00025289,2]
[313005280,1706591469433,1302.54978317,0.00020239,2]
[313005281,1706592330113,-3998.59477843,0.00024667,2]
[313005282,1706592445109,-432.59,0.00022799,2]
[313005283,1706592445130,-281.0,0.00024566,2]
[313005284,1706592445150,-250.0,0.00024629,2]
[313005285,1706592445171,-3634.24678218,0.00024662,2]
[313005286,1706592445195,-1063.50094198,0.00024663,2]
[313005287,1706592445218,-1000.0,0.00024665,2]
[313005288,1706592445239,-9890.35710483,0.00024666,2]
[313005289,1706592549206,-250.0,0.00024489,2]
[313005290,1706592549227,-1000.0,0.00024625,2]
[313005291,1706592549249,-4257.25464273,0.00024626,2]
[313005292,1706592549274,-953.24639952,0.00024627,2]
[313005293,1706592549295,-953.24639952,0.00024627,2]
[313005294,1706592549324,-953.24639952,0.00024627,2]
[313005295,1706592549347,-953.24639952,0.00024627,2]
[313005296,1706592549371,-953.24639952,0.00024627,2]
[313005297,1706592549391,-953.24639952,0.00024627,2]
[313005298,1706592549411,-2000.0,0.00024628,2]
[313005299,1706592549431,-250.0,0.00024658,2]
[313005300,1706592549452,-1062.12667326,0.00024665,2]
[313005301,1706592549472,-3096.60933641,0.00024665,2]
[313005302,1706592549493,-150.0,0.00024672,2]
[313005303,1706592549513,-1000.0,0.00024675,2]
[313005304,1706592549533,-21548.99654243,0.00024675,2]
[313005305,1706592557095,-4358.888,0.00024675,2]
[313005306,1706592558168,-7538.06913491,0.00024675,2]
[313005307,1706592558189,-1518.03,0.00024696,2]
[313005308,1706592558210,-154.4,0.00024705,2]
[313005309,1706592558231,-154.4,0.00024781,2]
[313005310,1706592558252,-300.0,0.00024783,2]
[313005311,1706592558271,-166.06,0.00024791,2]
[313005312,1706592558291,-154.4,0.00024857,2]
[313005313,1706592558310,-3399.2942,0.00024885,2]
[313005314,1706592558330,-1261.71700517,0.00024895,2]
[313005315,1706592558351,-154.4,0.00024933,2]
[313005316,1706592558370,-500.0,0.00024935,2]
[313005317,1706592558389,-51937.24593928,0.00025,2]
[313005318,1706592559567,12556.22486,0.0003,100]
[313005319,1706592565097,-2934.7336,0.00025,2]
[313005320,1706592565128,-19491.93712713,0.00025,2]
[313005321,1706592567195,-382.51727014,0.00024999,2]
[313005322,1706592567215,-17508.44736099,0.00025,2]
[313005323,1706592567235,-154.4,0.00025008,2]
[313005324,1706592567258,-432.59,0.00025063,2]
[313005325,1706592567277,-154.4,0.00025084,2]
[313005326,1706592567296,-188.65,0.0002509,2]
[313005327,1706592567315,-1261.71700517,0.00025093,2]
[313005328,1706592567336,-154.4,0.0002516,2]
[313005329,1706592567355,-23451.79185231,0.00025162,2]
[313005334,1706592631665,-212.47646995,0.00024998,2]
[313005335,1706592631675,-256.65989339,0.00024999,2]
[313005336,1706592631715,-822.13104381,0.00024999,2]
[313005337,1706592631725,-1633.7484,0.00025062,2]
[313005338,1706592631735,-275.96,0.00025181,2]
[313005339,1706592631745,-154.4,0.00025235,2]
[313005340,1706592631756,-2000.0,0.00025289,2]
[313005341,1706592631766,-200.0,0.00025289,2]
[313005342,1706592631775,-499.99,0.00025289,2]
[313005343,1706592631784,-154.4,0.00025311,2]
[313005344,1706592631793,-838.58,0.00025342,2]
[313005345,1706592631803,-154.4,0.00025387,2]
[313005346,1706592631812,-526.7526,0.00025442,2]
[313005347,1706592631821,-154.4,0.00025463,2]
[313005348,1706592631832,-1261.71700517,0.00025508,2]
[313005349,1706592631842,-154.4,0.00025538,2]
[313005350,1706592631853,-2000.0,0.00025542,2]
[313005351,1706592631863,-150.0,0.00025612,2]
[313005352,1706592631872,-154.4,0.00025614,2]
[313005353,1706592631882,-154.4,0.0002569,2]
[313005354,1706592631891,-154.4,0.00025766,2]
[313005355,1706592631900,-2000.0,0.00025797,2]
[313005356,1706592631910,-154.4,0.00025841,2]
[313005357,1706592631919,-154.4,0.00025917,2]
[313005358,1706592631928,-154.4,0.00025993,2]
[313005359,1706592631938,-23900.0,0.0002624,2]
[313005360,1706592631947,-150.0,0.00026295,2]
[313005361,1706592631958,-1518.03,0.0002634,2]
[313005362,1706592631967,-188.65,0.00026344,2]
[313005363,1706592631977,-1492.23550679,0.000264,5]
[313005364,1706592631986,-412.47258472,0.000264,2]
[313005365,1706592631996,-7311.28513951,0.00026729,2]
[313005368,1706592632008,-4614.60439857,0.00026729,2]
[313005369,1706592632020,-1189.24676295,0.00026729,2]
[313005370,1706592632031,-450.037073,0.00026729,2]
[313005371,1706592632043,-2600.98465327,0.00026729,2]
[313005374,1706592632065,-782.30663819,0.00026729,2]
[313005376,1706592632077,-1286.49991439,0.00026729,2]
[313005378,1706592632092,-1922.86375946,0.00026729,2]
[313005380,1706592632108,-5205.90023532,0.00026729,2]
[313005382,1706592632119,-7823.30645451,0.00026729,2]
[313005384,1706592632130,-363.36373079,0.00026729,2]
[313005386,1706592632145,-1186.83409097,0.00026729,2]
[313005387,1706592632157,-599.51586882,0.00026729,2]
[313005388,1706592632167,-1705.90980672,0.00026729,2]
[313005389,1706592632179,-7494.03827353,0.00026729,2]
[313005390,1706592632188,-328.8002,0.00026729,2]
[313005391,1706592632197,-1168.4008,0.00026729,2]
[313005392,1706592632206,-701.05,0.00026792,2]
[313005393,1706592632215,-166.28,0.00026838,2]
[313005394,1706592632224,-724.04,0.00026919,2]
[313005395,1706592632233,-432.59,0.00027327,2]
[313005396,1706592632243,-2658.74592307,0.00027394,2]
[313005397,1706592632252,-263.95414554,0.00027395,2]
[313005398,1706592632261,-12052.13482981,0.00027396,2]
[313005399,1706592632272,-152.99,0.00027397,2]
[313005400,1706592632284,-215.59,0.00027397,2]
[313005401,1706592632293,-168.33,0.00027397,2]
[313005402,1706592632302,-22590.2,0.00027397,2]
[313005403,1706592632311,-283.14,0.00027397,2]
[313005404,1706592632321,-186.13070656,0.000275,2]
[313005405,1706592632330,-155.78,0.00027549,2]
[313005406,1706592632340,-188.65,0.00027599,2]
[313005407,1706592632349,-172.75,0.00027696,2]
[313005408,1706592632359,-1518.03,0.00027984,2]
[313005409,1706592632369,-275.96,0.00028329,2]
[313005410,1706592632378,-597.48018043,0.00028732,2]
[313005411,1706592632387,-188.65,0.00028853,2]
[313005412,1706592632396,-152.99,0.00029224,2]
[313005413,1706592632405,-168.33,0.00029224,2]
[313005414,1706592632414,-432.59,0.00029591,2]
[313005415,1706592632423,-1518.03,0.00029628,2]
[313005416,1706592632433,-872.88397636,0.000299,2]
[313005417,1706592632442,-417.84826815,0.000299,4]
[313005418,1706592632451,-1000.00000952,0.00029999,2]
[313005419,1706592632461,-1854.63268667,0.0003,6]
[313005420,1706592632470,-155.0,0.0003,2]
[313005421,1706592632480,-169065.81464478,0.0003,2]
[313005434,1706592637739,-209.0,0.00029544,2]
[313005435,1706592637749,-49501.57828853,0.0003,2]
[313005436,1706592637758,-9659.87377421,0.0003,2]
[313005438,1706592637768,-682.19102,0.0003,2]
[313005440,1706592637778,-682.19102,0.0003,2]
[313005441,1706592637788,-188.65,0.00030108,2]
[313005442,1706592637797,-166.46,0.00030137,2]
[313005443,1706592637807,-724.04,0.00030283,2]
[313005444,1706592637816,-152.99,0.0003105,2]
[313005445,1706592637825,-168.33,0.0003105,2]
[313005446,1706592637834,-1907.06580922,0.00031272,14]
[313005447,1706592637844,-1518.03,0.00031272,2]
[313005448,1706592637853,-412.49,0.00031426,2]
[313005449,1706592637862,-1001.35852727,0.00031426,2]
[313005450,1706592637874,-18220.95147273,0.00031426,2]
[313005451,1706592637883,-275.96,0.00031476,2]
[313005452,1706592637892,-200.0,0.00031597,3]
[313005453,1706592637901,-190.305642,0.00031597,3]
[313005454,1706592637910,-180.0,0.00031644,2]
[313005455,1706592637919,-152.56220176,0.00031713,2]
[313005456,1706592637929,-11835.9031896,0.000318,2]
[313005457,1706592637938,-432.59,0.00031855,2]
[313005458,1706592637948,-309.73722913,0.00031983,2]
[313005459,1706592637958,-209.0,0.00032082,6]
[313005460,1706592637968,-172.75,0.00032267,2]
[313005461,1706592637978,-2355.0,0.000323,2]
[313005462,1706592637989,-5382.0,0.000323,2]
[313005463,1706592637999,-682.19102,0.0003239,2]
[313005464,1706592638009,-151.87707358,0.00032462,2]
[313005465,1706592638018,-1050.92242376,0.00032468,4]
[313005466,1706592638028,-800.0,0.00032469,4]
[313005467,1706592638037,-2158.66469254,0.00032469,4]
[313005468,1706592638046,-200.0,0.00032515,3]
[313005469,1706592638055,-622.60730284,0.00032515,3]
[313005470,1706592638074,-177.39269716,0.00032515,3]
[313005471,1706592638083,-800.0,0.00032515,3]
[313005472,1706592638092,-800.0,0.00032515,3]
[313005473,1706592638101,-157.09803962,0.0003269,2]
[313005474,1706592638110,-726.030693,0.000327,2]
[313005475,1706592638119,-150.01,0.00032777,2]
[313005476,1706592638129,-3305.32624244,0.00032777,2]
[313005477,1706592638138,-158.0,0.00032788,5]
[313005478,1706592638148,-1059.83118801,0.00032788,4]
[313005479,1706592638157,-2868.25617321,0.00032789,4]
[313005480,1706592638180,-832.20251183,0.00032789,4]
[313005481,1706592638189,-41.51248758,0.0003279,2]
[313005482,1706592638417,-835.92743039,0.0003279,2]
[313005483,1706592638428,-652.02101257,0.0003279,2]
[313005484,1706592640348,-2886.47752405,0.0003279,2]
[313005485,1706592640363,-489.24420514,0.0003279,2]
[313005486,1706592640375,-725.70393964,0.0003279,2]
[313005487,1706592640384,-500.0,0.0003279,2]
[313005488,1706592640394,-249.41846344,0.0003279,4]
[313005489,1706592640410,-1698.52317393,0.0003279,4]
[313005490,1706592640998,-713.16322836,0.0003279,4]
[313005491,1706592641010,-877.16886363,0.0003279,4]
[313005510,1706592642750,-152.56220176,0.00031713,2]
[313005511,1706592642761,-150.01,0.00032777,2]
[313005512,1706592642771,-3305.32624244,0.00032777,2]
[313005513,1706592642781,-2334.39966313,0.0003279,4]
[313005514,1706592642792,-155.0,0.0003279,4]
[313005515,1706592642804,-2600.61155671,0.0003279,4]
[313005516,1706592642815,-244.40073402,0.0003279,4]
[313005517,1706592642826,-168.41380749,0.0003279,2]
[313005518,1706592642836,-1205.01901313,0.00032798,4]
[313005519,1706592642846,-1976.19979935,0.00032798,4]
[313005520,1706592642858,-1008.28687562,0.00032798,4]
[313005521,1706592642888,-30812.57219415,0.00032798,4]
[313005522,1706592642898,-1867.37530683,0.00032799,4]
[313005523,1706592642908,-7650.26905116,0.00032799,4]
[313005524,1706592642921,-392.29490377,0.00032799,4]
[313005525,1706592642934,-1392.97493485,0.00032799,4]
[313005526,1706592642965,-783.10397591,0.00032799,4]
[313005527,1706592642991,-368.25055268,0.00032799,4]
[313005528,1706592643001,-1649.02231694,0.000328,2]
[313005529,1706592643016,-871.23723563,0.000328,2]
[313005530,1706592643062,-283.11399448,0.000328,2]
[313005531,1706592643076,-1470.26762691,0.000328,2]
[313005532,1706592643090,-459.52724864,0.000328,2]
[313005534,1706592643103,-495.13548268,0.000328,2]
[313005538,1706592643132,-397.20681402,0.000328,2]
[313005540,1706592643144,-624.5037373,0.000328,2]
[313005542,1706592643169,-38661.68247089,0.000328,2]
[313005545,1706592645837,-401.93,0.000328,2]
[313005546,1706592645892,-9403.56105854,0.000328,2]
[313005547,1706592646037,-382.51727014,0.000328,2]
[313005552,1706593625111,-279.99458956,0.00025334,2]
[313005553,1706593625131,-212.47646995,0.00025335,2]
[313005554,1706593625152,-354.37,0.00025337,2]
[313005555,1706593625174,-200.0,0.0002708,2]
[313005556,1706593625195,-889.61,0.00027092,2]
[313005557,1706593625215,-939.76637642,0.0002713,2]
[313005558,1706593632094,-1501.61761752,0.0002713,2]
[313005559,1706593636103,-164.92,0.00027124,10]
[313005560,1706593636122,-2423.39628923,0.0002713,2]
[313005561,1706593650311,-11278.80485349,0.00027129,2]
[313005562,1706593755163,-273.97,0.00027105,2]
[313005563,1706593755183,-237.46,0.00027117,2]
[313005564,1706593755202,-212.47646995,0.00027117,2]
[313005565,1706593755221,-187.01,0.00027118,2]
[313005566,1706593755241,-168.24,0.00027121,2]
[313005567,1706593755260,-150.0,0.00027123,2]
[313005568,1706593755281,-266.86530761,0.00027126,2]
[313005569,1706593760135,-7536.16719313,0.00027126,2]
[313005570,1706593760155,-4498.70235005,0.00027127,2]
[313005571,1706593760177,-19045.58215759,0.00027127,2]
[313005572,1706593760199,-150.0,0.00027128,2]
[313005573,1706593760220,-150.0,0.00027128,2]
[313005574,1706593760242,-2000.0,0.00027131,2]
[313005575,1706593760263,-282.5786369,0.00027132,2]
[313005576,1706593760282,-4635.5485652,0.00027133,2]
[313005577,1706593760303,-4281.30291557,0.00027133,2]
[313005578,1706593760323,-2143.62450616,0.00027133,2]
[313005579,1706593760345,-439.71428451,0.00027133,2]
[313005580,1706593760365,-1000.0,0.00027134,2]
[313005581,1706593760386,-1536.66830201,0.00027134,2]
[313005582,1706593760407,-23866.36,0.00027135,2]
[313005583,1706593760427,-124.54008888,0.00027159,2]
[313005584,1706593765211,-4498.70235005,0.00027125,2]
[313005585,1706593765231,-125.45991112,0.00027159,2]
[313005586,1706593765249,-2500.0,0.00027161,3]
[313005587,1706593765269,-200.0,0.00027171,2]
[313005588,1706593765290,-150.0,0.00027171,2]
[313005589,1706593765310,-250.0,0.00027181,2]
[313005590,1706593765332,-499.99,0.00027181,2]
[313005591,1706593765353,-152.29923647,0.00027183,2]
[313005592,1706593765374,-584.2,0.00027189,2]
[313005593,1706593765392,-250.0,0.00027196,2]
[313005594,1706593765413,-310.46,0.0002721,2]
[313005595,1706593765433,-171.26067411,0.00027264,2]
[313005596,1706593770100,-336.65,0.0002536,2]
[313005599,1706593821746,-363.64543732,0.00027263,2]
[313005600,1706593821777,-822.70932589,0.00027264,2]
[313005601,1706593821803,-7461.94523679,0.00027283,2]
[313005618,1706593831860,-1186.35476321,0.00027283,2]
[313005620,1706593831870,-187.03,0.00027355,2]
[313005622,1706593831879,-24.58974965,0.00027388,2]
[313005624,1706593831895,-711.56025035,0.00027388,2]
[313005626,1706593831904,-712.39,0.00027389,2]
[313005627,1706593831913,-720.62,0.00027389,2]
[313005628,1706593831922,-679.82396663,0.0002739,2]
[313005629,1706593831945,-31.62603337,0.0002739,2]
[313005630,1706593831956,-550.76119188,0.0002739,2]
[313005631,1706593831967,-165.73880812,0.0002739,2]
[313005632,1706593831977,-681.63053866,0.00027392,2]
[313005633,1706593832035,-46.63946134,0.00027392,2]
[313005634,1706593832045,-738.4,0.00027394,2]
[313005635,1706593832054,-713.67,0.00027396,2]
[313005636,1706593832064,-181.37,0.00027397,2]
[313005637,1706593832073,-2288.29,0.00027397,2]
[313005638,1706593832082,-300.43670848,0.00027399,2]
[313005639,1706593832184,-252.21330593,0.00027399,2]
[313005641,1706593832210,-172.73998559,0.00027399,2]
[313005642,1706593832219,-567.84241548,0.00027406,2]
[313005643,1706593832230,-149.56758452,0.00027406,2]
[313005644,1706593832240,-414.36058336,0.00027418,2]
[313005645,1706593832251,-319.27941664,0.00027418,2]
[313005646,1706593832261,-442.93933654,0.0002744,2]
[313005650,1706593832321,-282.78066346,0.0002744,2]
[313005651,1706593832331,-160.6,0.00027449,2]
[313005652,1706593832341,-229.82,0.00027469,2]
[313005653,1706593832351,-737.51,0.00027481,2]
[313005654,1706593832360,-940.34,0.0002749,2]
[313005655,1706593832369,-183.98,0.0002749,2]
[313005656,1706593832378,-2288.29,0.00027556,2]
[313005657,1706593832387,-716.44,0.00027563,2]
[313005658,1706593832396,-160.6,0.00027569,2]
[313005659,1706593832406,-336.65,0.00027624,2]
[313005660,1706593832415,-747.15,0.00027671,2]
[313005661,1706593832426,-160.6,0.00027688,2]
[313005662,1706593832435,-2288.29,0.00027714,2]
[313005663,1706593832445,-720.79,0.00027718,2]
[313005664,1706593832456,-160.6,0.00027807,2]
[313005665,1706593832465,-761.10559942,0.00027872,2]
[313005666,1706593832478,-1527.18440058,0.00027872,2]
[313005667,1706593832487,-160.6,0.00027926,2]
[313005668,1706593832496,-662.21559942,0.00028019,2]
[313005669,1706593832508,-62.93440058,0.00028019,2]
[313005670,1706593832517,-999.84355228,0.00028028,2]
[313005671,1706593832533,-434.539105,0.00028028,2]
[313005672,1706593832544,-2190.22572218,0.00028028,2]
[313005673,1706593832556,-1053.42704108,0.00028028,2]